[Event "28th WSCC Women 65 2018"]
[Site "Bled"]
[Date "2018.11.18"]
[Round "1"]
[White "Fatalibekova, Elena"]
[Black "Tsygankova, Enni"]
[Result "1-0"]
[ECO "B50"]
[WhiteElo "2161"]
[BlackElo "1760"]
[Annotator "NA"]
[PlyCount "59"]
[EventDate "2018.11.17"]
[EventType "swiss"]
[EventCountry "SLO"]
[SourceTitle "playchess.com"]
[Source "ChessBase"]
[SourceQuality "1"]
[TimeControl "40/5400+30:1800+30"]

1. e4 {[%emt 0:00:00]} c5 2. Nf3 d6 {[%emt 0:00:17]} 3. c3 {[%emt 0:00:27]} Nf6 {[%emt 0:00:29]} 4. Qc2 {[%emt 0:00:22]} g6 {[%emt 0:00:17]} 5. d4 {[%emt 0:00:26]} cxd4 {B50: Sicilian: 2...d6, Miscellaneous} (5... Bg7 6. dxc5 dxc5 7. h3 O-O 8. Bf4 Nc6 9. Bh2 a6 10. a4 Be6 11. Nbd2 Na5 12. Be2 Qb6 13. O-O {0-1 (108) Pap,G (2542)-Li,C (2751) Graz 2016}) 6. cxd4 Bg7 {[%emt 0:02:52]} 7. h3 {[%emt 0:02:10]} O-O 8. Nc3 Nc6 {[%emt 0:04:39]} 9. Be3 {[%emt 0:00:39]} a6 $146 {[%emt 0:03:25]} ({Predecessor:} 9... d5 10. e5 Bf5 11. Qb3 Ne4 12. Qxd5 Nb4 13. Qxd8 Nc2+ 14. Kd1 Rfxd8 15. Nxe4 Bxe4 {0-1 (47) Pepin,C (1957)-Trinh,B (2066) Trois Rivieres 2009}) 10. Be2 {[%emt 0:02:01]} b5 {[%emt 0:03:04]} 11. d5 {[%emt 0:01:02]} Na5 {[%emt 0:04:42]} 12. Nd2 {[%emt 0:03:05]} Bd7 {[%emt 0:02:23]} 13. b4 {[%emt 0:03:45]} Nb7 {[%emt 0:02:23]} (13... Rc8 $15 {stays ahead.} 14. Bd4 (14. bxa5 Nh5 $11) 14... Nc4) 14. Rc1 {[%emt 0:02:48]} Rc8 {[%emt 0:00:19]} 15. Qb3 {[%emt 0:07:43]} e6 {[%emt 0:06:09]} 16. O-O {[%emt 0:00:15]} h5 {[%emt 0:00:28]} (16... exd5 $14 17. Nxd5 Nxd5 18. Qxd5 Rxc1 19. Rxc1 Qb8) 17. a4 {[%emt 0:14:34]} bxa4 {[%emt 0:18:24]} 18. Nxa4 {[%emt 0:00:31]} Rxc1 {[%emt 0:01:10]} 19. Rxc1 {[%emt 0:00:01]} exd5 {[%emt 0:01:09]} 20. Bxa6 {[%emt 0:05:29]} Qa8 {[%emt 0:04:43]} 21. b5 {[%emt 0:00:25]} Na5 {[%emt 0:14:24]} 22. Qb4 {[%emt 0:00:50]} Nc4 {[%emt 0:02:27]} 23. Nxc4 {[%emt 0:04:36]} dxc4 {[%emt 0:00:31]} 24. Rxc4 {[%emt 0:09:29]} Be6 {[%emt 0:00:14]} 25. Rc6 {[%emt 0:00:44]} d5 $18 26. Nc5 Re8 {[%emt 0:15:50]} 27. e5 {[%emt 0:07:26]} Ne4 {[%emt 0:00:42]} 28. Nxe6 {[%emt 0:01:51]} fxe6 29. Bd4 Bf8 {[%emt 0:06:46]} 30. Qb1 {[%emt 0:01:14]} 1-0

[Event "28th WSCC Women 65 2018"]
[Site "Bled"]
[Date "2018.11.18"]
[Round "1"]
[White "Khmiadashvili, Tamar"]
[Black "Norman, Dinah M"]
[Result "0-1"]
[ECO "A14"]
[WhiteElo "2010"]
[BlackElo "1659"]
[Annotator "NA RC"]
[PlyCount "109"]
[EventDate "2018.11.17"]
[EventType "swiss"]
[EventCountry "SLO"]
[SourceTitle "playchess.com"]
[Source "ChessBase"]
[SourceQuality "1"]
[TimeControl "40/5400+30:1800+30"]

1. c4 {[%emt 0:00:00]} e6 {[%emt 0:00:13]} 2. g3 {[%emt 0:00:37]} d5 {[%emt 0:00:55]} 3. Bg2 {[%emt 0:00:22]} Nf6 {[%emt 0:01:37]} 4. d3 {[%emt 0:00:53]} c6 {[%emt 0:01:10]} 5. Nd2 {[%emt 0:03:33]} Nbd7 {[%emt 0:02:05]} 6. Ngf3 {[%emt 0:03:19]} Be7 {[%emt 0:02:47]} 7. O-O {[%emt 0:00:18]} O-O {[%emt 0:01:19] LiveBook: 5 Games} 8. b3 {[%emt 0:00:41]} b6 {[%emt 0:02:53]} 9. Bb2 {[%emt 0:00:20]} Bb7 {[%emt 0:00:54]} 10. Qc2 {[%emt 0:01:15]} a5 {[%emt 0:03:12] A14: English Opening: 1...e6 with b3 by White} 11. e4 {[%emt 0:02:38]} (11. a3 Rc8 12. Rac1 c5 13. e3 Qc7 14. Qb1 Qb8 15. cxd5 Bxd5 16. e4 Bc6 17. Nc4 Rfd8 18. Rfe1 {½-½ (66) Leon Hoyos,M (2603)-Yang,D (2485) Saint Louis 2012}) 11... Rc8 $146 {[%emt 0:04:58]} ({Predecessor:} 11... a4 12. Rfe1 Qb8 13. Rad1 Rc8 14. Bc3 axb3 15. axb3 Bf8 16. Ra1 c5 17. Rxa8 Bxa8 18. cxd5 exd5 {½-½ (76) Barlov,D (2424)-Alvarado Diaz,A (2419) Las Palmas 2016}) 12. e5 {[%emt 0:02:25]} Ne8 {[%emt 0:01:05]} 13. Rfe1 {[%emt 0:01:53]} Nc7 {[%emt 0:02:54]} 14. a3 {[%emt 0:04:13]} Na6 {[%emt 0:01:03]} 15. d4 {[%emt 0:14:00]} c5 {[%emt 0:06:27]} 16. Rad1 {[%emt 0:03:07]} Qc7 {[%emt 0:02:57]} 17. Qb1 {[%emt 0:02:13]} Rfe8 {[%emt 0:08:14]} 18. h4 {[%emt 0:04:25]} Nf8 {[%emt 0:01:34]} 19. dxc5 {[%emt 0:03:32]} bxc5 {[%emt 0:03:09]} 20. Qc2 {[%emt 0:09:14]} Rcd8 {[%emt 0:03:38]} 21. Nh2 {[%emt 0:01:50]} d4 {[%emt 0:05:16]} 22. Be4 {[%emt 0:05:42]} Bxe4 {[%emt 0:03:44]} 23. Qxe4 {[%emt 0:01:02]} Qb6 {[%emt 0:10:12]} 24. Bc1 {[%emt 0:01:48]} Nb8 {[%emt 0:02:18]} 25. Qd3 {[%emt 0:00:54]} Nbd7 {[%emt 0:02:44]} 26. h5 {[%emt 0:02:39]} Qc7 {[%emt 0:03:49]} 27. f4 {[%emt 0:02:53]} h6 {[%emt 0:02:12]} 28. Ng4 {[%emt 0:07:42]} Nh7 {[%emt 0:01:15]} 29. Nf3 {[%emt 0:03:41]} Ndf8 {[%emt 0:01:10]} 30. f5 {[%emt 0:03:02]} exf5 {[%emt 0:00:32]} 31. Qxf5 {[%emt 0:00:17]} Ne6 {[%emt 0:00:46]} 32. Bxh6 {[%emt 0:01:09]} Bf8 {[%emt 0:03:02]} (32... a4 $11) 33. Bc1 {[%emt 0:01:38]} Qb7 {[%emt 0:01:12]} (33... Rb8 $142) 34. Rd3 {[%emt 0:00:52]} Rb8 {[%emt 0:02:45]} 35. Qe4 {[%emt 0:05:05]} Qxe4 {[%emt 0:01:23]} 36. Rxe4 {[%emt 0:00:07]} Be7 {[%emt 0:01:57]} 37. Re1 {[%emt 0:00:41]} Rb7 {[%emt 0:01:49]} 38. Bd2 {[%emt 0:02:12]} Reb8 {[%emt 0:00:59]} 39. Bxa5 {[%emt 0:01:24]} Rxb3 {[%emt 0:00:36]} 40. Red1 {[%emt 0:00:00]} Rxd3 {[%emt 0:00:00]} 41. Rxd3 {[%emt 0:00:44]} Rb1+ {[%emt 0:01:50]} ({Black should try} 41... Ra8 $17 42. Bd2 Nhg5) 42. Be1 {[%emt 0:19:18]} Rc1 {[%emt 0:00:54]} 43. Rb3 {[%emt 0:04:50]} Rxc4 {[%emt 0:02:47]} (43... Nhg5 $19 {is more deadly.} 44. Ngh2 Ne4) 44. Rb8+ {[%emt 0:02:29]} Nhf8 {[%emt 0:02:03]} 45. h6 {[%emt 0:03:57]} Ra4 {[%emt 0:02:10]} 46. Bd2 {[%emt 0:06:32]} (46. Re8 $17 {might work better.} Ra7 47. Kg2) 46... Rxa3 {[%emt 0:03:23]} 47. hxg7 {[%emt 0:00:35]} Kxg7 {[%emt 0:01:44]} 48. Kf2 {[%emt 0:00:52]} Ra2 $2 {[%emt 0:01:35]} 49. Ke1 $1 $11 {[%emt 0:00:10]} Ra1+ {[%emt 0:01:44]} 50. Kf2 $1 $11 {[%emt 0:00:26]} Ra2 {[%emt 0:01:24]} (50... Ra7 $19 51. Rc8 Ra2) 51. Ke1 {[%emt 0:00:12]} Ra1+ {[%emt 0:01:25]} 52. Ke2 $2 {[%emt 0:00:17]} Ra2 $11 {[%emt 0:02:41]} (52... c4 $19 53. Rc8 c3 54. Bh6+ Kg6) 53. Kd3 $2 {[%emt 0:00:18]} Ra3+ {[%emt 0:02:17]} 54. Ke4 {[%emt 0:00:22]} Kg6 {[%emt 0:04:53]} 55. Ngh2 0-1

[Event "28th WSCC Women 65 2018"]
[Site "Bled"]
[Date "2018.11.18"]
[Round "1"]
[White "Hoose, Hannelore"]
[Black "Sorokina, Tamara"]
[Result "0-1"]
[ECO "B21"]
[WhiteElo "1680"]
[BlackElo "2058"]
[Annotator "NA"]
[PlyCount "82"]
[EventDate "2018.11.17"]
[EventType "swiss"]
[EventCountry "SLO"]
[SourceTitle "playchess.com"]
[Source "ChessBase"]
[SourceQuality "1"]
[TimeControl "40/5400+30:1800+30"]

1. e4 {[%emt 0:00:18]} c5 {[%emt 0:00:00]} 2. d4 {[%emt 0:00:36]} cxd4 {[%emt 0:00:00]} 3. Qxd4 {[%emt 0:00:06]} Nc6 {[%emt 0:00:00]} 4. Qd1 {[%emt 0:00:10]} Nf6 {[%emt 0:00:01]} 5. Nc3 {[%emt 0:00:30]} e6 {[%emt 0:00:22]} 6. a3 {[%emt 0:01:41]} a6 {[%emt 0:00:13]} 7. g3 {[%emt 0:00:21]} Be7 {[%emt 0:00:27]} 8. Bg2 {[%emt 0:00:21]} O-O {[%emt 0:00:11]} 9. Nge2 {[%emt 0:00:43]} d6 {[%emt 0:00:08]} 10. O-O {[%emt 0:00:15]} Qc7 {[%emt 0:00:16]} 11. Be3 {[%emt 0:01:32]} b5 {[%emt 0:00:16]} 12. Nd4 {[%emt 0:02:43]} Bb7 {[%emt 0:00:20]} 13. Nxc6 {[%emt 0:01:53]} Bxc6 {[%emt 0:00:01]} 14. Qd4 $146 {[%emt 0:01:28] B49: Sicilian: Taimanov: 5 Nc3 Qc7 6 Be3 a6 7 Be2} ({Predecessor:} 14. f4 Qb7 15. Qd3 Rfd8 16. Rad1 a5 17. b4 axb4 18. axb4 Ng4 19. Bc1 Bf6 20. Bf3 Bxc3 21. Qxc3 Nf6 {½-½ (60) Pena Gomez,M (2319)-Rodriguez Perez,J (2133) Leon 2006}) 14... Rab8 {[%emt 0:01:41]} 15. Qd2 {[%emt 0:01:50]} Qb7 {[%emt 0:00:57]} 16. f3 {[%emt 0:02:11]} d5 {[%emt 0:02:48]} 17. exd5 Nxd5 18. Nxd5 {[%emt 0:02:44]} Bxd5 {[%emt 0:00:36]} 19. f4 {[%emt 0:01:14]} Rfd8 {[%emt 0:00:28]} 20. Bxd5 {[%emt 0:00:18]} Rxd5 {[%emt 0:00:08]} 21. Qg2 {[%emt 0:00:32]} Qd7 {[%emt 0:01:01]} 22. Qe2 {[%emt 0:01:56]} Qc6 {[%emt 0:02:52]} 23. c3 {[%emt 0:00:37]} Bc5 {[%emt 0:00:35]} 24. Bxc5 {[%emt 0:00:46]} Qxc5+ {[%emt 0:00:05]} 25. Qf2 {[%emt 0:00:35]} Qd6 {[%emt 0:00:07]} 26. Rfe1 {[%emt 0:01:02]} Rd8 {[%emt 0:00:29]} 27. Re2 {[%emt 0:01:21]} g6 {[%emt 0:00:57]} 28. Rae1 {[%emt 0:01:37]} Rd3 {[%emt 0:00:41]} 29. Re3 $1 {[%emt 0:01:28]} Rd5 {[%emt 0:02:43]} 30. Re5 {[%emt 0:00:09]} Rd2 {[%emt 0:00:49]} 31. R5e2 {[%emt 0:00:07]} Rd3 {[%emt 0:02:48]} (31... a5 $15) 32. Re3 {[%emt 0:00:24]} Qc6 {[%emt 0:00:37]} 33. Rxd3 {[%emt 0:04:01]} Rxd3 {[%emt 0:00:02]} 34. Re2 {[%emt 0:00:34]} Qd6 {[%emt 0:03:34]} 35. Re1 {[%emt 0:01:27]} h5 $15 {[%emt 0:00:30]} 36. Re2 {[%emt 0:04:24]} a5 {[%emt 0:03:31]} 37. h4 {[%emt 0:02:13]} b4 {[%emt 0:00:42]} 38. axb4 {[%emt 0:00:23]} axb4 {[%emt 0:00:01]} 39. cxb4 {[%emt 0:00:26]} Qxb4 {[%emt 0:00:08]} 40. Kg2 {[%emt 0:00:52]} Rd1 {[%emt 0:02:14]} 41. Rc2 {[%emt 0:01:40]} Qe4+ {[%emt 0:00:42]} 0-1

[Event "28th WSCC Women 65 2018"]
[Site "Bled"]
[Date "2018.11.19"]
[Round "2"]
[White "Sorokina, Tamara"]
[Black "Kabanova, Irina"]
[Result "1-0"]
[ECO "D05"]
[WhiteElo "2058"]
[BlackElo "1856"]
[Annotator "NA RC"]
[PlyCount "43"]
[EventDate "2018.11.17"]
[EventType "swiss"]
[EventCountry "SLO"]
[SourceTitle "playchess.com"]
[Source "ChessBase"]
[SourceQuality "1"]
[TimeControl "40/5400+30:1800+30"]

1. Nf3 {[%emt 0:00:00]} Nf6 {[%emt 0:00:00]} 2. d4 {[%emt 0:00:00]} e6 {[%emt 0:00:04]} 3. e3 {[%emt 0:00:00]} d5 {[%emt 0:00:25]} 4. Bd3 {[%emt 0:00:00]} Nbd7 {[%emt 0:00:43]} 5. O-O {[%emt 0:00:00]} Bd6 {[%emt 0:01:36]} 6. Nbd2 {[%emt 0:00:08]} c5 {[%emt 0:01:20]} 7. c4 {[%emt 0:03:26]} O-O {[%emt 0:02:20]} 8. b3 {[%emt 0:03:51]} cxd4 {[%emt 0:05:59]} 9. exd4 {[%emt 0:00:49]} b6 {[%emt 0:07:55]} 10. Bb2 {[%emt 0:00:30]} Bb7 {[%emt 0:02:42]} 11. Qe2 {[%emt 0:00:39]} Re8 {[%emt 0:02:01]} 12. Ne5 {[%emt 0:00:25]} a6 {[%emt 0:05:37]} 13. Rac1 {[%emt 0:00:32]} Rc8 {[%emt 0:02:11]} 14. a3 {[%emt 0:01:32]} Qe7 {[%emt 0:04:22]} 15. b4 {[%emt 0:03:51]} dxc4 {[%emt 0:02:59]} 16. Ndxc4 $11 {[%emt 0:01:44]} Nd5 {[%emt 0:01:44]} 17. Nxd6 {[%emt 0:04:13]} Qxd6 {[%emt 0:00:43]} 18. Bxh7+ {[%emt 0:02:54]} Kf8 {[%emt 0:01:43]} 19. Be4 {[%emt 0:02:13]} N7f6 {[%emt 0:00:51]} 20. Bf3 {[%emt 0:01:21]} Nf4 {[%emt 0:20:57]} 21. Qd2 {[%emt 0:00:58]} Nh3+ {[%emt 0:02:21]} 22. gxh3 {[%emt 0:02:12]} 1-0

[Event "28th WSCC Women 65 2018"]
[Site "Bled"]
[Date "2018.11.19"]
[Round "2"]
[White "Norman, Dinah M"]
[Black "Kozlovskaya, Valentina"]
[Result "0-1"]
[ECO "A41"]
[WhiteElo "1659"]
[BlackElo "2154"]
[Annotator "RC"]
[PlyCount "74"]
[EventDate "2018.11.17"]
[EventType "swiss"]
[EventCountry "SLO"]
[SourceTitle "playchess.com"]
[Source "ChessBase"]
[SourceQuality "1"]
[TimeControl "40/5400+30:1800+30"]

1. d4 {[%emt 0:00:00]} d6 {[%emt 0:00:00]} 2. Nf3 {[%emt 0:01:00]} g6 {[%emt 0:00:49]} 3. Bf4 {[%emt 0:01:34]} Bg7 {[%emt 0:00:11]} 4. e3 {[%emt 0:00:53]} Nf6 {[%emt 0:01:34]} 5. h3 {[%emt 0:01:51]} O-O {[%emt 0:00:13]} 6. Nbd2 {[%emt 0:01:27]} c6 {[%emt 0:00:24]} 7. c3 {[%emt 0:02:15]} Nbd7 {[%emt 0:00:34]} 8. Bc4 {[%emt 0:05:55]} h6 {[%emt 0:02:36]} 9. O-O {[%emt 0:01:41]} Nh7 {[%emt 0:05:16]} 10. a4 {[%emt 0:03:56]} e5 {[%emt 0:04:42]} 11. Bh2 {[%emt 0:01:52]} e4 {[%emt 0:07:31]} 12. Ne1 {[%emt 0:01:15]} Qe7 {[%emt 0:02:17]} 13. a5 {[%emt 0:03:18]} h5 {[%emt 0:17:55]} 14. Nc2 {[%emt 0:02:08]} d5 {[%emt 0:03:03]} 15. Be2 {[%emt 0:01:19]} Bh6 {[%emt 0:05:43]} 16. Re1 {[%emt 0:03:03]} f5 {[%emt 0:01:02]} 17. Bf1 {[%emt 0:02:16]} Rf7 {[%emt 0:02:42]} 18. Qe2 {[%emt 0:06:07]} Ndf8 {[%emt 0:00:32]} 19. Nb4 {[%emt 0:03:35]} Bd7 {[%emt 0:00:14]} 20. Nc2 {[%emt 0:01:55]} Ne6 {[%emt 0:00:32]} 21. b4 {[%emt 0:04:23]} a6 {[%emt 0:00:27]} 22. g3 {[%emt 0:10:37]} Raf8 {[%emt 0:03:05]} 23. Bg2 {[%emt 0:01:21]} Ng7 {[%emt 0:00:30]} 24. Rf1 {[%emt 0:02:51]} h4 {[%emt 0:03:27]} 25. c4 {[%emt 0:05:52]} g5 {[%emt 0:02:32]} 26. c5 {[%emt 0:02:03]} f4 {[%emt 0:04:57]} 27. exf4 {[%emt 0:02:43]} gxf4 {[%emt 0:00:05]} 28. gxf4 {[%emt 0:01:47]} Bxf4 {[%emt 0:02:09]} 29. Bxf4 {[%emt 0:02:05]} Rxf4 {[%emt 0:00:02]} 30. Ne3 {[%emt 0:02:30]} Ng5 {[%emt 0:02:12]} 31. Kh2 {[%emt 0:02:07]} Be6 {[%emt 0:03:23]} 32. Ng4 {[%emt 0:04:53]} Bxg4 {[%emt 0:01:03]} 33. hxg4 {[%emt 0:00:24]} Qc7 {[%emt 0:01:51]} 34. Kg1 {[%emt 0:02:02]} h3 {[%emt 0:00:51]} 35. Bh1 {[%emt 0:00:34]} h2+ {[%emt 0:02:37]} 36. Kg2 {[%emt 0:00:28]} Nf3 {[%emt 0:01:02]} 37. Kh3 {[%emt 0:02:55]} Ng1+ {[%emt 0:04:16]} 0-1

[Event "28th WSCC Women 65 2018"]
[Site "Bled"]
[Date "2018.11.20"]
[Round "3"]
[White "Tsifanskaya, Ludmila A"]
[Black "Dotan, Valeria"]
[Result "1/2-1/2"]
[ECO "B40"]
[WhiteElo "1996"]
[BlackElo "1883"]
[Annotator "NA RC"]
[PlyCount "71"]
[EventDate "2018.11.17"]
[EventType "swiss"]
[EventCountry "SLO"]
[SourceTitle "playchess.com"]
[Source "ChessBase"]
[SourceQuality "1"]
[TimeControl "40/5400+30:1800+30"]

1. e4 {[%emt 0:00:00]} c5 {[%emt 0:00:22]} 2. Nf3 {[%emt 0:00:34]} e6 {[%emt 0:00:12]} 3. d3 {[%emt 0:01:18]} Nc6 {[%emt 0:02:17]} 4. g3 {[%emt 0:00:13]} d6 {[%emt 0:01:35]} 5. Bg2 {[%emt 0:00:17]} Nge7 {[%emt 0:01:40]} 6. O-O {[%emt 0:01:09]} g6 {[%emt 0:00:36]} 7. c3 {[%emt 0:06:09]} Bg7 {[%emt 0:01:52]} 8. Be3 {[%emt 0:01:32]} O-O {[%emt 0:01:12] LiveBook: 44 Games} 9. Qd2 {[%emt 0:01:13]} Re8 {[%emt 0:02:33] A04: Unusual lines after 1 Nf3 and King's Indian Attack} (9... e5 10. Bh6 Bxh6 11. Qxh6 f6 12. Na3 Be6 13. Rfd1 Qb6 14. Bh3 Bf7 15. Nc4 Qc7 16. Ne3 Kh8 17. Bg4 {0-1 (27) Rathnakaran,K (2417)-Nguyen Huynh Minh,H (2496) Al Ain 2015}) 10. Na3 {[%emt 0:04:17]} Rb8 {[%emt 0:02:40]} 11. d4 {[%emt 0:03:10]} cxd4 {[%emt 0:02:50]} 12. Nxd4 {[%emt 0:00:32]} a6 {[%emt 0:14:46]} 13. Rad1 $146 {[%emt 0:09:52]} ({Predecessor:} 13. Rfd1 d5 14. h3 dxe4 15. Nxc6 Nxc6 16. Qxd8 Rxd8 17. Bxe4 {1-0 (54) Habibi,A (2280)-Balogh,V (2237) Hungary 2008}) 13... d5 {[%emt 0:05:04]} 14. exd5 {[%emt 0:08:26]} exd5 {[%emt 0:00:55]} 15. Bf4 {[%emt 0:02:45]} Ra8 {[%emt 0:00:22]} 16. Nac2 {[%emt 0:00:45]} Bg4 {[%emt 0:01:38]} 17. Rde1 {[%emt 0:06:50]} Nxd4 {[%emt 0:01:08]} 18. Nxd4 {[%emt 0:00:20]} Qd7 {[%emt 0:00:08]} 19. Be5 {[%emt 0:08:43]} Bh3 {[%emt 0:12:44]} 20. Bxg7 {[%emt 0:02:40]} Kxg7 {[%emt 0:00:26]} 21. Nf3 {[%emt 0:08:12]} Bxg2 {[%emt 0:01:10]} 22. Kxg2 {[%emt 0:00:01]} Nc6 {[%emt 0:08:46]} 23. Rxe8 {[%emt 0:01:35]} Rxe8 {[%emt 0:00:08]} 24. Rd1 {[%emt 0:00:25]} Rd8 {[%emt 0:00:22]} 25. Qf4 {[%emt 0:01:28]} Qd6 {[%emt 0:04:38]} 26. Qxd6 {[%emt 0:01:08]} Rxd6 {[%emt 0:00:02]} 27. a4 {[%emt 0:00:39]} a5 {[%emt 0:05:49]} 28. Nd4 {[%emt 0:02:05]} Nxd4 {[%emt 0:05:13]} 29. Rxd4 {[%emt 0:00:07]} Kf6 {[%emt 0:00:04]} 30. Kf3 {[%emt 0:01:39]} Ke5 {[%emt 0:01:37]} 31. Ke3 {[%emt 0:00:26]} f5 {[%emt 0:02:09]} 32. f4+ {[%emt 0:02:39]} Ke6 {[%emt 0:00:50]} 33. Rd2 {[%emt 0:00:19]} Rc6 {[%emt 0:00:38]} 34. Kd3 {[%emt 0:00:09]} Rc4 {[%emt 0:00:41]} 35. b3 {[%emt 0:02:49]} Re4 $11 {[%emt 0:00:07]} 36. Rb2 {[%emt 0:07:05]} 1/2-1/2

[Event "28th WSCC Women 65 2018"]
[Site "Bled"]
[Date "2018.11.20"]
[Round "3"]
[White "Milashevskaja, Valentina"]
[Black "Serjmyadag, Damdin"]
[Result "0-1"]
[ECO "A04"]
[WhiteElo "1731"]
[BlackElo "1864"]
[Annotator "NA RC"]
[PlyCount "82"]
[EventDate "2018.11.17"]
[EventType "swiss"]
[EventCountry "SLO"]
[SourceTitle "playchess.com"]
[Source "ChessBase"]
[SourceQuality "1"]
[TimeControl "40/5400+30:1800+30"]

1. Nf3 {[%emt 0:00:00]} f5 {[%emt 0:00:08]} 2. d4 {[%emt 0:00:13]} g6 {[%emt 0:00:37]} 3. g3 {[%emt 0:00:08]} Bg7 {[%emt 0:00:10]} 4. Bg2 {[%emt 0:00:07]} Nf6 {[%emt 0:00:14]} 5. O-O {[%emt 0:06:05]} d6 {[%emt 0:00:52]} 6. c4 {[%emt 0:02:55]} O-O {[%emt 0:00:53]} 7. Nc3 {[%emt 0:01:12] LiveBook: 6695 Games} e6 {[%emt 0:02:40]} 8. Qb3 {[%emt 0:03:27] A87: Dutch Defence: Leningrad System: 5 Nf3} (8. Rb1 a5 9. b3 Nc6 10. d5 Nb4 11. dxe6 Bxe6 12. Nd4 Bc8 13. Bb2 c6 14. e3 Qe7 15. a3 Na6 {½-½ (41) Shankland,S (2666)-Li,R (2577) Saint Louis 2017}) 8... Nc6 {[%emt 0:02:10]} 9. Qd1 $146 {[%emt 0:02:39]} ({Predecessor:} 9. d5 Nb8 10. dxe6 Na6 11. Be3 Ng4 12. c5 Kh8 13. Bg5 Bf6 14. Bxf6+ Qxf6 15. cxd6 cxd6 {1-0 (36) Kiewra,K (2425)-Rozman,L (2254) Chicago 2016}) 9... a6 {[%emt 0:07:19]} 10. a3 {[%emt 0:00:29]} Rb8 {[%emt 0:01:05]} 11. Qd3 {[%emt 0:09:07]} e5 {[%emt 0:03:19]} 12. dxe5 {[%emt 0:01:14]} dxe5 {[%emt 0:00:19]} 13. Qxd8 {[%emt 0:00:23]} Rxd8 {[%emt 0:00:17]} 14. Bg5 {[%emt 0:01:57]} Be6 {[%emt 0:03:57]} 15. c5 {[%emt 0:05:36]} e4 {[%emt 0:03:31]} 16. Nh4 {[%emt 0:01:08]} Rd7 {[%emt 0:08:50]} 17. Rad1 {[%emt 0:00:35]} Rbd8 {[%emt 0:00:58]} 18. Bh1 {[%emt 0:11:32]} Nd4 {[%emt 0:05:00]} 19. Kg2 {[%emt 0:07:23]} Bc4 {[%emt 0:01:49]} 20. Rc1 {[%emt 0:06:09]} Nxe2 {[%emt 0:02:38]} 21. Nxe2 {[%emt 0:00:20]} Bxe2 {[%emt 0:00:14]} 22. Rfe1 {[%emt 0:00:12]} Bb5 {[%emt 0:02:39]} 23. Kh3 {[%emt 0:02:17]} Bc6 {[%emt 0:01:56]} 24. f3 {[%emt 0:03:36]} Re8 {[%emt 0:01:29]} 25. Rc2 {[%emt 0:06:03]} Kf7 {[%emt 0:05:30]} 26. fxe4 {[%emt 0:00:32]} Nxe4 {[%emt 0:00:56]} 27. Bc1 {[%emt 0:01:11]} Nf2+ {[%emt 0:05:27]} 28. Rxf2 {[%emt 0:00:09]} Rxe1 {[%emt 0:00:08]} 29. Bxc6 {[%emt 0:00:28]} bxc6 {[%emt 0:00:10]} 30. Rc2 {[%emt 0:00:26]} Rdd1 {[%emt 0:07:29]} 31. Bf4 {[%emt 0:02:21]} Rd7 {[%emt 0:00:26]} 32. Nf3 {[%emt 0:00:12]} Re8 {[%emt 0:01:25]} 33. Kg2 {[%emt 0:00:50]} h6 {[%emt 0:00:27]} 34. h3 {[%emt 0:03:56]} g5 {[%emt 0:01:28]} 35. Bc1 {[%emt 0:00:15]} Rde7 {[%emt 0:02:59]} 36. Kf2 {[%emt 0:00:14]} (36. Rf2 $142) 36... g4 {[%emt 0:03:20]} 37. hxg4 {[%emt 0:04:08]} fxg4 {[%emt 0:00:04]} 38. Nh4 $19 {[%emt 0:00:16]} Bd4+ {[%emt 0:00:33]} 39. Kf1 {[%emt 0:05:42]} Re1+ {[%emt 0:01:35]} 40. Kg2 {[%emt 0:00:00]} Rg1+ {[%emt 0:00:00]} 41. Kh2 {[%emt 0:00:46]} Ree1 {[%emt 0:03:57]} 0-1